Cogmind - Beta 15 @@@ ROGUE MODE // 2025.07.17 @ 23:10:07 Player: The Gourd Result: Destroyed by 7Y-HRV(R) with Subdweller Machine Gun Performance ------------- Evolutions (0) 0 Regions Visited (2) 400 Robots Destroyed (41) 205 Value Destroyed (1245) 1245 Prototype IDs (13) 260 Alien Tech Used (0) 0 Bonus (0) 0 TOTAL SCORE: 2110 Bonus ------- None Cogmind --------- Core Integrity 0/250 Matter 75/300 Energy 130/180 System Corruption 0% Temperature Cool (0) Movement Walking (200) Ox1 Location -10/Subcaves Parts ------- > --- POWER (1) -------- Meta Core > --- PROPULSION (2+1) - Spiked Treads (+) Cargo Legs > --- UTILITY (2+3) ---- High-capacity Storage Unit Light Armor Plating Light Armor Plating (+) Scrap Shield (++) > --- WEAPON (2+1) ----- Subdweller Machine Gun Battle Cannon Rocket Launcher (+) > --- INVENTORY (20) --- Subdweller Power Source Subdweller Power Source Light Treads Light Treads Subdweller Monowheel Subdweller Monowheel Subdweller Monowheel Subdweller Monowheel High-capacity Matter Pod (0) Light Armor Plating Light Armor Plating Subdweller Machine Gun Rocket Launcher Rocket Launcher Subdweller Shrapnel Launcher Peak State ------------ > --- POWER ------------ Meta Core > --- PROPULSION ------- Spiked Treads Cargo Legs > --- UTILITY ---------- High-capacity Storage Unit Light Armor Plating Light Armor Plating Scrap Shield > --- WEAPON ----------- Rocket Launcher Rocket Launcher Subdweller Shrapnel Launcher > --- INVENTORY -------- Subdweller Power Source Subdweller Power Source Light Treads Light Treads Subdweller Monowheel Subdweller Monowheel Subdweller Monowheel Subdweller Monowheel High-capacity Matter Pod High-capacity Matter Pod Light Armor Plating Light Armor Plating Subdweller Machine Gun Subdweller Machine Gun Battle Cannon Rocket Launcher [Rating: 46] Favorites ----------- Power Ion Engine Engine Ion Engine Power Core Meta Core Propulsion Light Treads Treads Light Treads Leg Cargo Legs Wheel Compact Wheel Utility High-capacity Storage Unit Device Seismic Detector Storage High-capacity Storage Unit Protection Light Armor Plating Weapon EM Pulse Gun Energy Gun EM Pulse Gun Ballistic Gun Subdweller Machine Gun Ballistic Cannon Light Cannon Launcher Rocket Launcher Special Weapon Mining Laser Slashing Weapon Mining Claw Build | -11 -10 -10 ------- Run | Yrd Mat Sub Slots Evolved . | . . . Power . | . . . Propulsion . | . . . Utility . | . . . Weapon . | . . . Parts Attached 32 | 8 9 15 Power 2 | 1 . 1 Engine 1 | 1 . . Core 1 | . . 1 Reactor . | . . . Propulsion 7 | 2 1 4 Treads 5 | 2 . 3 Leg 1 | . . 1 Wheel 1 | . 1 . Hover . | . . . Flight . | . . . Utility 8 | 2 4 2 Device 2 | 1 1 . Storage 3 | 1 2 . Processor . | . . . Hackware . | . . . Protection 3 | . 1 2 Artifact . | . . . Weapon 15 | 3 4 8 Energy Gun 3 | 3 . . Energy Cannon . | . . . Ballistic Gun 1 | . . 1 Ballistic Cannon 4 | . 1 3 Launcher 4 | . . 4 Special Weapon 2 | . 2 . Impact Weapon . | . . . Slashing Weapon 1 | . 1 . Piercing Weapon . | . . . Special Melee Weapon . | . . . Unidentified Prototypes . | . . . Parts Lost 2 | . 1 1 Power 1 | . . 1 Propulsion . | . . . Utility 1 | . 1 . Weapon . | . . . Highest Loss Streak 1 | . 1 1 To Critical Strikes . | . . . Average Backups 17 | 4 16 19 Power 1 | . 1 1 Propulsion 6 | 1 7 6 Utility 5 | . 4 6 Weapon 4 | 1 4 5 Tool/Special . | . . . Unused Backups 29 | . 9 20 Power 3 | . . 3 Propulsion 12 | . 3 9 Utility 9 | . 4 5 Weapon 5 | . 2 3 Tool/Special . | . . . Average Slot Usage (%) 92 | . 97 88 Engine 13 | . 14 12 Treads 19 | . 26 14 Leg 3 | . . 5 Device 4 | . 10 . Storage 14 | . 16 12 Protection 10 | . . 17 Energy Gun 7 | . 18 . Ballistic Cannon 7 | . 2 11 Launcher 6 | . . 10 Special Weapon 3 | . 4 1 Peak Build Rating 46 | 7 9 46 Average Rating 14 | 6 8 19 On Entrance 5 | . 7 9 Naked Turns . | . . . Heaviest Build 78 | 15 59 78 Greatest Support 55 | 40 40 55 Greatest Overweight (x) 3 | 2 3 1 Average Overweight (x) 1 | . 1 1 Largest Inventory Capacity 20 | 8 20 20 Average Capacity 19 | 7 19 20 Most Carried 20 | 6 20 20 Average Carried 17 | 4 16 19 Final Capacity 20 | 8 20 20 Final Carried 20 | 6 20 15 Class Distribution -------------------- 100% | Mutant Dominant Class ---------------- Mutant | -10/Materials Mutant | -10/Subcaves Resources | -11 -10 -10 ----------- Run | Yrd Mat Sub Matter Collected 2085 | 290 790 1005 Remotely . | . . . Salvage Created 1186 | 274 406 506 Parts 73 | 22 21 30 Haulers Intercepted 1 | . 1 . Recyclers Shooed . | . . . Parts Field Recycled . | . . . Retrieved Matter . | . . . Parts Self-Destructed 6 | . . 6 Prevented . | . . . Kills | -11 -10 -10 ------- Run | Yrd Mat Sub Combat Hostiles Destroyed 28 | . 6 22 Guns 8 | . 6 2 Cannons 1 | . . 1 AOE 19 | . . 19 Classes Destroyed 7 | 2 4 1 Tunneler 8 | 8 . . Hauler 1 | . 1 . Recycler 1 | 1 . . Operator 1 | . 1 . Watcher 2 | . 2 . Grunt 6 | . 6 . Subdweller 22 | . . 22 Best Kill Streak 8 | 4 2 8 Combat Bots Only 8 | . 2 8 Max Kills in Single Turn 2 | 1 1 2 Gunslinging . | . . . Exploded 2 | . . 2 Melee . | . . . Uniques/NPCs Destroyed . | . . . Combat | -11 -10 -10 -------- Run | Yrd Mat Sub Hostile Shots Fired 89 | . 26 63 Missed 31 | . 9 22 Hits 58 | . 17 41 Projectile 58 | . 17 41 Critical Strikes 2 | . 1 1 Damage Taken 1651 | . 250 1401 Core 253 | . 65 188 Absorbed by Shields . | . . . Regen/Repaired (Parts) 193 | . 193 . Core Remaining (%) 100 | 100 . . Volleys Fired 182 | 38 34 110 Largest 3 | 1 2 3 Hottest 130 | 50 100 130 Shots Fired 237 | 38 63 136 Gun 103 | 38 58 7 Cannon 35 | . . 35 Launcher 46 | . . 46 Special 53 | . 5 48 Kinetic 56 | . . 56 Thermal 91 | 38 5 48 Explosive 32 | . . 32 Electromagnetic 58 | . 58 . Robot Hit Streak 15 | 9 10 15 Robot Miss Streak 2 | 2 2 2 Penetration Max . | . . . Secondary Targets . | . . . Shots Hit Robots 99 | 29 36 34 Core Hits 63 | 10 16 37 Critical Kills . | . . . Critical Parts Destroyed . | . . . Critical Strikes 2 | 1 1 . Burn 1 | 1 . . Corrupt 1 | . 1 . Melee Attacks 10 | . 10 . Impact . | . . . Slashing 10 | . 10 . Piercing . | . . . Sneak Attacks . | . . . Combat Hostiles . | . . . Follow-up Attacks . | . . . Damage Inflicted 3902 | 365 523 3014 Guns 999 | 365 523 111 Cannons 76 | . . 76 Explosions 2827 | . . 2827 Melee . | . . . Ramming . | . . . Kinetic 1605 | . . 1605 Thermal 365 | 365 . . Explosive 1409 | . . 1409 Electromagnetic 523 | . 523 . Impact . | . . . Slashing . | . . . Piercing . | . . . Highest Corruption . | . . . Average Corruption . | . . . Corruption Purged . | . . . Corruption Blocked . | . . . Overload Shots . | . . . Overflow Damage 50 | . . 50 Projectiles . | . . . Explosions 50 | . . 50 Melee . | . . . Knockbacks . | . . . Impact . | . . . Kinetic . | . . . Secondary . | . . . Self-Inflicted Damage 45 | . . 45 Shots 3 | . . 3 Rammed . | . . . Targets Rammed . | . . . Kicked . | . . . Crushed . | . . . Highest Temperature 216 | 190 216 3 Average Temperature 56 | 64 51 2 Received Heat Transfer 252 | . 156 96 Siege Activations . | . . . Martial Activations . | . . . Shielding Activations . | . . . Robots Disrupted . | . . . Combat Hostiles . | . . . Robots Corrupted . | . . . Combat Hostiles . | . . . Parts Fried 5 | . 5 . Impact Corruptions . | . . . Robots Melted . | . . . Combat Hostiles . | . . . Parts Melted 2 | 2 . . Heat Transferred 1147 | 1147 . . Parts Sabotaged . | . . . Parts Stolen . | . . . Parts Stripped . | . . . Power Chain Reactions . | . . . Alert | -11 -10 -10 ------- Run | Yrd Mat Sub Maximum Alert Level . | . . . Low Security (%) 100 | 100 100 . Level 1 . | . . . Level 2 . | . . . Level 3 . | . . . Level 4 . | . . . Level 5 . | . . . High Security . | . . . Max Security . | . . . Peak Influence 87 | 15 87 . Initial 3 | . 3 . Average 9 | 1 10 . Influence Increases 342 | 45 297 . Destroy 0b10 Robot/C 120 | . 120 . Destroy 0b10 Robot/NC 65 | 45 20 . Destroy Leader 36 | . 36 . Successful Hack 37 | . 37 . Select Force Hacks 30 | . 30 . Disable Machine 15 | . 15 . Destroy Structure 9 | . 9 . Lose Combat Pursuer 30 | . 30 . Influence Decreases 342 | 40 302 . Entered New Map 2 | . 2 . Time Decay 340 | 40 300 . Squads Dispatched 1 | . 1 . Investigation 1 | . 1 . Extermination . | . . . Reinforcement . | . . . Assault . | . . . Garrison . | . . . Intercept . | . . . Searches Triggered . | . . . Construction Impeded . | . . . Haulers Reinforced . | . . . Active Scanning Responses . | . . . Cargo Convoy Interrupts . | . . . Stealth | -11 -10 -10 --------- Run | Yrd Mat Sub Distress Signals 3 | . 3 . Communications Jammed . | . . . Distress Signals . | . . . Times Spotted 34 | . 13 21 Peak Tracking Total 4 | . 4 3 Tactical Retreats 3 | . 3 . Traps | -11 -10 -10 ------- Run | Yrd Mat Sub Traps Triggered . | . . . Indirectly . | . . . Trap Hack Attempts . | . . . Triggered . | . . . Disarmed . | . . . Reprogrammed . | . . . Reused . | . . . Traps Extracted . | . . . Installed . | . . . Triggered . | . . . Machines | -11 -10 -10 ---------- Run | Yrd Mat Sub Machines Disabled 2 | . 1 1 Max in Single Turn 1 | . 1 1 Machines Repaired . | . . . Machines Dismantled . | . . . Machines Sabotaged . | . . . Overloaded Fab Kills . | . . . Hacking | -11 -10 -10 --------- Run | Yrd Mat Sub Machines Accessed 12 | . 10 2 Terminals 7 | . 7 . Fabricators . | . . . Repair Stations 1 | . 1 . Recycling Units 2 | . 2 . Scanalyzers . | . . . Garrison Access . | . . . Total Hacks 53 | . 40 13 Successful 38 | . 25 13 Failed 15 | . 15 . Catastrophic . | . . . Database Lockouts . | . . . Manual 26 | . 26 . Terminals 25 | . 25 . Fabricators . | . . . Repair Stations 12 | . 12 . Recycling Units 3 | . 3 . Scanalyzers . | . . . Garrison Access . | . . . Terminal Hacks 17 | . 4 13 Record 12 | . . 12 Prototype ID Bank 1 | . 1 . Recycling Unit Index 1 | . 1 . Transport Status 1 | . 1 . Hauler Manifests 1 | . 1 . Proto ID Catalog 1 | . . 1 Fabricator Hacks . | . . . Repair Station Hacks 10 | . 10 . Scan Component 5 | . 5 . Repair 5 | . 5 . Recycling Unit Hacks 2 | . 2 . Process 1 | . 1 . Retrieve Matter 1 | . 1 . Scanalyzer . | . . . Garrison Access Hacks . | . . . Unauthorized Hacks 9 | . 9 . Terminals 8 | . 8 . Botnet 3 | . 3 . Skim 5 | . 5 . Fabricators . | . . . Repair Stations . | . . . Recycling Units 1 | . 1 . Tunnel 1 | . 1 . Scanalyzers . | . . . Garrison Access . | . . . Data Cores Recovered 1 | . 1 . Used . | . . . Hacking Detections 8 | . 8 . Full Trace Events . | . . . Feedback Events . | . . . Feedback Blocked . | . . . Robot Schematics Acquired . | . . . Robots Built . | . . . Authchips . | . . . Time . | . . . Total Robot Build Rating . | . . . Part Schematics Acquired . | . . . Parts Built . | . . . Authchips . | . . . Time . | . . . Total Part Build Rating . | . . . Parts Repaired 5 | . 5 . Time 130 | . 130 . Parts Recycled . | . . . Recycled Matter 165 | . 165 . Retrieved Matter 401 | . 401 . Retrieved Components . | . . . Parts Scanalyzed . | . . . Part Schematics Acquired . | . . . Parts Damaged . | . . . Bothacking | -11 -10 -10 ------------ Run | Yrd Mat Sub Used RIF Installer . | . . . Robots Hacked . | . . . Non-combat . | . . . Combat . | . . . Robot Hacks Applied . | . . . Relay Couplers Released . | . . . Fabnet Peak Effective % . | . . . Robots Rewired . | . . . Allies Hacked . | . . . Hacks Repelled . | . . . Allies | -11 -10 -10 -------- Run | Yrd Mat Sub Total Allies . | . . . Largest Group . | . . . Highest-Rated Group . | . . . Highest-Rated Ally . | . . . Total Orders . | . . . Ally Attacks . | . . . Total Damage . | . . . Kills . | . . . Allies Corrupted . | . . . Allies Melted . | . . . Intel | -11 -10 -10 ------- Run | Yrd Mat Sub Active Infowar (turns) 1983 | 173 1810 . Seismic 1983 | 173 1810 . Robot Analysis Total . | . . . Derelict Logs Recovered . | . . . Drone Launches . | . . . Drone Recoveries . | . . . Exploration | -11 -10 -10 ------------- Run | Yrd Mat Sub Turns Passed 6086 | 279 2451 3356 Spaces Moved 2322 | 102 877 1343 Core 12 | 12 . . Treads 1430 | 90 737 603 Legs 740 | . . 740 Wheels 140 | . 140 . Hover . | . . . Flight . | . . . Fastest Speed 50 | 50 145 200 Average Speed 214 | 156 216 217 Slowest Speed 320 | 160 320 240 Overloaded Moves . | . . . Propulsion Burnouts . | . . . Robots Hopped . | . . . Potential Cave-ins 8 | . . 8 Cave-ins Triggered 2 | . . 2 Exploration Rate (%) 50 | 7 74 71 Regions Visited 2 Branch Regions 1 Pre-discovered Areas 2 | . 2 . Known Exits Taken 1 | . 1 . Unknown Exits Taken 1 | 1 . . Scrap Searched 4 | . . 4 Spaces Dug 36 | . 9 27 Terrain Destroyed 410 | . 9 401 Melee 4 | . 4 . Projectile 34 | . 5 29 AOE 372 | . . 372 Terrain Rammed . | . . . Walls Destroyed . | . . . Machines Disabled . | . . . Actions | -11 -10 -10 --------- Run | Yrd Mat Sub Total 3062 | 179 1340 1543 Wait 385 | 24 345 16 Move 2318 | 101 876 1341 Hop . | . . . Pick Up 57 | 7 32 18 Fast Attach 16 | 6 8 2 Attach 8 | 1 . 7 Detach 2 | . 2 . Swap 35 | 2 13 20 Drop 42 | . 20 22 Fire 182 | 38 34 110 Melee 10 | . 10 . Ram . | . . . Kick . | . . . Crush . | . . . Escape Stasis 2 | . . 2 Rewire . | . . . Trap . | . . . Miscellaneous 5 | . . 5 Route ------- -11/Scrapyard -10/Materials (discovered 6 exits: *Mat x3 / [*Min x2] / *Sub) -10/Subcaves (discovered 2 exits: [*Mat x2]) History --------- Turn | Location | Event 32 | -11/Scrapyard | Discovered new exit (range 16) 280 | -11/Scrapyard | Entered Materials 310 | -10/Materials | Build established: Mutant 391 | -10/Materials | Discovered new exit (range 8) 561 | -10/Materials | Discovered new exit (range 11) 617 | -10/Materials | Discovered new exit (range 16) 880 | -10/Materials | Derelicts attacked the area 1020 | -10/Materials | Discovered new exit (range 10) 1562 | -10/Materials | Learned Storage emergency access door positions 1618 | -10/Materials | Identified exit to Materials 1618 | -10/Materials | Identified exit to Subcaves 1618 | -10/Materials | Learned location of 1 exit from Materials 1633 | -10/Materials | Repaired EM Pulse Gun 1660 | -10/Materials | Repaired EM Pulse Gun 1688 | -10/Materials | Repaired Lgt. Treads 1706 | -10/Materials | Learned location of Mines (-10) 1715 | -10/Materials | Repaired Lgt. Treads 1743 | -10/Materials | Repaired Lgt. Treads 1831 | -10/Materials | Learned Storage trap positions 1886 | -10/Materials | Learned Storage trap positions 1951 | -10/Materials | Loaded intel: 11 interactive machine locations 2731 | -10/Materials | Entered Subcaves 2732 | -10/Subcaves | Approached by a straggling Scientist 2736 | -10/Subcaves | A swath of the cavern ceiling suddenly collapsed 3030 | -10/Subcaves | A swath of the cavern ceiling suddenly collapsed 3169 | -10/Subcaves | Shifting Twisted Machinery released Sub. Shrapnel Launcher 3198 | -10/Subcaves | Shifting Twisted Machinery released Sub. Power Source 3601 | -10/Subcaves | Ambushed by Subdweller buried in earth 3712 | -10/Subcaves | Ambushed by Subdweller buried in earth 3749 | -10/Subcaves | Crushed by falling debris 3750 | -10/Subcaves | Core integrity fell below 50% 4100 | -10/Subcaves | Visited Clippyterm 4107 | -10/Subcaves | Learned Factory stockpile data 4107 | -10/Subcaves | Learned Factory garrison access intel 4141 | -10/Subcaves | Discovered new exit (range 7) 4443 | -10/Subcaves | Visited 4L-MR0's lab 4473 | -10/Subcaves | Found Cargo Legs 4475 | -10/Subcaves | Attached Cargo Legs, gained temporary slots: Utility x2 4798 | -10/Subcaves | Crushed by falling debris 5311 | -10/Subcaves | Discovered new exit (range 16) 5318 | -10/Subcaves | Shifting Twisted Machinery released Riot Gun 5340 | -10/Subcaves | Shifting Twisted Machinery released Sub. Monowheel 5630 | -10/Subcaves | A Subdweller sparked back to life 5630 | -10/Subcaves | A Subdweller sparked back to life 5630 | -10/Subcaves | A Subdweller sparked back to life 5665 | -10/Subcaves | Found Meta Core 5989 | -10/Subcaves | Ambushed by Subdweller buried in earth 6051 | -10/Subcaves | Ambushed by Subdweller buried in earth 6051 | -10/Subcaves | Ambushed by Subdweller buried in earth 6057 | -10/Subcaves | Core integrity fell below 20% 6068 | -10/Subcaves | Ambushed by Subdweller buried in earth 6071 | -10/Subcaves | Ambushed by Subdweller buried in earth 6071 | -10/Subcaves | Ambushed by Subdweller buried in earth 6078 | -10/Subcaves | Attached Meta Core, gained temporary slots: Propulsion, Utility, Weapon 6087 | -10/Subcaves | Destroyed by 7Y-HRV(R) with Subdweller Machine Gun Last Messages --------------- 06074_ 9X-1TO(R) destroyed. 06075_ The unstable cave ceiling collapses. 06075_ Ion Engine destroyed. 06078_ The unstable cave ceiling collapses. 06078_ Core temporarily expanded with Propulsion slot. 06078_ Core temporarily expanded with Utility slot. 06078_ Core temporarily expanded with Weapon slot. 06079_ The unstable cave ceiling collapses. 06081_ Dropped Hcp. Matter Pod. 06081_ Critical hit (Destroy). 06082_ Extracted 135 matter. 06082_ The unstable cave ceiling collapses. 06082_ 1T-LHF(R) destroyed. 06083_ The unstable cave ceiling collapses. 06084_ Subatomizers dissect the Disposable Heat Sink. 06085_ The unstable cave ceiling collapses. Map ----- +----------------------------------------------------+ | ?????????????????????????????????????????????????? | | ?????????????????????????????????????????????????? | | ?????????????????????????????????????????????????? | | ?????????????????????????????????????????????????? | | ?????????????????????????????????????????????????? | | ?????????????????????????????????????????????????? | | ?????????????????????????????????????????????????? | | ?????????????????????????????????????????????????? | | ?????????????????????????????????????????????????? | | ?????????????????????????????????????????????????? | | ?????????????????????????????????????????????????? | | ?????????????????????????????????????????????????? | | ?????????????????????????????????????????????????? | | ?????????????????????????????????????????????????? | | ?????????????????????????????????????????????????? | | ?????????????????????????????????????????????????? | | ???????????????????????????????????## ???????????? | | ?????????????????????????????????? ???????????? | | ??????????????????????????????### ##& ??????????? | | ??????????????????????????#### = !! ??????????? | | ??????????????????????????# & # ??????????? | | ?###???????????????###???## ?????????? | | ## ##?????????????## ###?# ?????????? | | ## #??##????????## ### %& ????????? | | ## ### #??###???# # ????????? | | #?## #???# @ # ????????? | | #?## #???# ## % ????????? | | ### #???# ### # R [ ????????? | | ## #???## ###### ?????????? | | ## #?#### ####?? # ?????????? | | ## ### ## #???? #??????????? | | ## #?????######??????????? | | ## ##?????????????????????? | | #### ##??????????????????????? | | ########??# #???????????????????????? | | ##?????????# #???????????????????????? | | ???????????## ### #???????????????????????? | | ????????????## #?# ##??????????????????????? | | ?????????????## #?# ##?????????????????????? | | ??????????????# ### #?????????????????????? | | ??????????????## #?## ##?????????????????????? | | ???????????????#######??###??????????????????????? | | ?????????????????????????????????????????????????? | | ?????????????????????????????????????????????????? | | ?????????????????????????????????????????????????? | | ?????????????????????????????????????????????????? | | ?????????????????????????????????????????????????? | | ?????????????????????????????????????????????????? | | ?????????????????????????????????????????????????? | | ?????????????????????????????????????????????????? | +----------------------------------------------------+ Best States ------------- Heat Dissipation 25 Energy Generation 17 Energy Capacity 250 Matter Stores 300 Matter Capacity 300 Sight Range 16 Terrain Scan Density 10 Armor Coverage 1100 Evasion (%) 40 Recoil Reduction 2 Item Schematics ----------------- None Robot Schematics ------------------ None Fabricated ------------ Nothing Repaired ---------- EM Pulse Gun | 17% | -10/Materials EM Pulse Gun | 48% | -10/Materials Lgt. Treads | 53% | -10/Materials Lgt. Treads | 69% | -10/Materials Lgt. Treads | 82% | -10/Materials Alien Tech Used ----------------- None Achievements -------------- None Challenges ------------ None Game ------ Seed ChromionSpreadScrap Manual? 0 Play Time 00:40:21 Cumulative 135.7 hours Start 2025.07.17 @ 22:29:42 End 2025.07.17 @ 23:10:07 Sessions 1 Manual Loads 0 Difficulty Rogue Special Mode None Game No. 90 Rogue 90 Adventurer 0 Explorer 0 Win Type - Total 2 Types 2/0/0/0/0/0/0/0/0/0 Lore% 41 Gallery% 49 Achievement% 51 Wizard Run 0 Options --------- Layout 1 ASCII 0 Keyboard 1 Movement Vi Keybinds 1 Fullscreen 1 Font 32/SmallcapsGlow Map View 50x35 Zoom Use 0% Tactical HUD 1 Map Filters NONE Filters NONE Steam 1 RUN: b4fe794f-acf0-45ba-af8f-570d4f116915